bitfinex/quotes_SOLUSD_20241222
["timestamp","ask_amount","ask_price","bid_price","bid_amount"]
[1734879758793,0.8339,180.61,180.53,20.0]
[1734879758964,0.8339,180.61,180.48,18.60802646]
[1734879759173,4.0621,180.59,180.49,20.0]
[1734879759384,0.8339,180.58,180.49,20.0]
[1734879760094,0.8339,180.58,180.46,18.60802646]
[1734879760296,40.526884,180.57,180.44,32.46252646]
[1734879760498,4.0621,180.53,180.44,18.60802646]
[1734879760677,0.8339,180.52,180.44,20.0]
[1734879761196,0.8339,180.52,180.44,18.60802646]
[1734879761779,0.8339,180.52,180.42,18.60802646]
[1734879762399,0.8339,180.52,180.44,18.60802646]
[1734879762910,20.0,180.48,180.38,18.60802646]
[1734879763078,0.8339,180.47,180.37,32.46812646]
[1734879763278,0.8339,180.47,180.35,18.60802646]
[1734879763801,20.8339,180.47,180.35,18.60802646]
[1734879764004,34.482984,180.46,180.34,13.8625]
[1734879764210,0.12549,180.42,180.3,13.8651]
[1734879764379,4.3537,180.4,180.29,18.60802646]
[1734879764580,0.8339,180.39,180.27,18.60802646]
[1734879764814,0.8339,180.39,180.29,18.60802646]
[1734879765099,0.8339,180.39,180.31,18.60802646]
[1734879765272,4.3537,180.4,180.34,18.60802646]
[1734879765473,0.8339,180.43,180.37,18.60802646]
[1734879765705,0.8339,180.43,180.38,18.60802646]
[1734879765910,0.8339,180.43,180.37,18.60802646]
[1734879766110,6.3524,180.44,180.4,18.60802646]
[1734879766408,6.3524,180.44,180.39,18.60802646]
[1734879766607,6.3524,180.44,180.4,18.60802646]
[1734879767291,6.3524,180.44,180.41,18.60802646]
[1734879767921,6.3524,180.49,180.42,18.60802646]
[1734879768083,6.3524,180.49,180.43,18.60802646]
[1734879768282,0.8339,180.54,180.4,23.902374]
[1734879768283,11.54,180.54,180.44,30.20331334]
[1734879768613,11.54,180.54,180.46,30.20331334]
[1734879768912,11.54,180.54,180.46,60.32880334]
[1734879769091,11.54,180.54,180.48,30.20331334]
[1734879769309,10.7061,180.54,180.5,30.20331334]
[1734879769689,6.3524,180.54,180.51,30.20331334]
[1734879770515,6.3524,180.54,180.5,30.20331334]
[1734879770708,6.3524,180.54,180.48,60.20331334]
[1734879771223,6.3524,180.54,180.49,30.0]
[1734879771925,5.8524,180.54,180.49,30.0]
[1734879772428,0.8339,180.53,180.49,30.0]
[1734879773292,0.8339,180.53,180.47,13.852]
[1734879773612,0.8339,180.53,180.47,30.20331334]
[1734879775134,0.8339,180.58,180.49,30.20331334]
[1734879776130,0.8339,180.58,180.48,30.20331334]
[1734879776433,0.8339,180.58,180.5,30.0]
[1734879778132,10.7061,180.64,180.55,30.20331334]
[1734879778337,0.8339,180.63,180.56,30.20331334]
[1734879778504,0.8339,180.63,180.58,20.0]
[1734879778704,0.8339,180.63,180.56,30.20331334]
[1734879779231,0.8339,180.63,180.57,30.0]
[1734879779606,0.8339,180.63,180.58,13.8442]
[1734879780304,0.8339,180.63,180.57,30.0]
[1734879780516,0.8339,180.63,180.55,13.8464]
[1734879780933,0.8339,180.63,180.53,30.20331334]
[1734879781320,0.8339,180.63,180.56,30.20331334]
[1734879781523,0.8339,180.63,180.54,30.20331334]
[1734879781807,0.8339,180.63,180.52,30.20331334]
[1734879782002,0.8339,180.63,180.53,30.20331334]
[1734879782232,0.8339,180.63,180.55,30.20331334]
[1734879782540,0.8339,180.63,180.54,50.20331334]
[1734879783422,0.8339,180.63,180.53,13.8476]
[1734879784039,17.5839,180.63,180.53,13.8476]
[1734879784938,17.5839,180.63,180.53,30.20331334]
[1734879785136,17.5839,180.63,180.55,30.20331334]
[1734879785817,0.8339,180.63,180.56,30.20331334]
[1734879786221,10.54,180.64,180.56,30.20331334]
[1734879787029,27.29,180.64,180.55,13.846]
[1734879787979,26.87570237,180.64,180.55,13.846]
[1734879788116,26.87570237,180.64,180.55,30.20331334]
[1734879788519,26.87570237,180.64,180.55,20.0]
[1734879788743,26.87570237,180.64,180.54,30.20331334]
[1734879788932,23.776884,180.63,180.53,30.20331334]
[1734879789252,40.526884,180.63,180.53,30.20331334]
[1734879789539,0.12549,180.62,180.49,44.05411334]
[1734879789910,40.526884,180.59,180.49,13.8508]
[1734879790132,23.776884,180.57,180.48,18.57793481]
[1734879790942,6.3936,180.56,180.48,18.57793481]
[1734879791754,40.526884,180.55,180.44,18.57793481]
[1734879791940,20.0,180.52,180.42,32.43443481]
[1734879792254,6.3936,180.49,180.39,44.07535825]
[1734879792435,23.776884,180.48,180.39,44.07535825]
[1734879792851,23.776884,180.48,180.39,13.8586]
[1734879793149,23.776884,180.48,180.39,44.07535825]
[1734879793458,6.3936,180.49,180.4,30.21675825]
[1734879793755,23.776884,180.48,180.37,30.21675825]
[1734879794334,23.776884,180.48,180.36,30.21675825]
[1734879794860,23.776884,180.48,180.37,30.21675825]
[1734879795532,6.3936,180.49,180.4,30.21675825]
[1734879795859,6.3936,180.49,180.41,30.21675825]
[1734879796231,6.3936,180.49,180.42,30.21675825]
[1734879796853,6.3936,180.49,180.44,30.21675825]
[1734879797169,4.3793,180.5,180.46,30.21675825]
[1734879798352,6.3936,180.53,180.48,30.21675825]
[1734879798563,6.3936,180.53,180.49,30.21675825]
[1734879798729,6.3936,180.53,180.48,30.21675825]
[1734879799964,6.3936,180.53,180.47,30.21675825]
[1734879800656,6.3936,180.53,180.48,30.21675825]
[1734879800961,6.3936,180.58,180.51,30.21675825]
[1734879801165,6.3936,180.58,180.49,30.21675825]
[1734879801337,6.3936,180.58,180.48,30.21675825]
[1734879802366,6.3936,180.58,180.5,30.21675825]
[1734879802569,6.3936,180.58,180.48,13.8513]
[1734879802570,6.3936,180.58,180.52,30.21675825]
[1734879803356,6.3936,180.58,180.51,30.21675825]
[1734879803757,4.3793,180.6,180.51,44.06575825]
[1734879804063,4.3793,180.6,180.53,30.21675825]
[1734879804734,4.3793,180.6,180.54,30.21675825]
[1734879805132,4.3793,180.6,180.53,30.21675825]
[1734879806080,4.3793,180.6,180.52,13.8482]
[1734879806752,4.3793,180.6,180.54,30.0]
[1734879807158,40.526884,180.62,180.54,30.0]
[1734879809675,16.75,180.62,180.54,60.21675825]
[1734879811848,40.526884,180.61,180.54,30.0]
[1734879812067,16.75,180.59,180.54,30.0]
[1734879812579,16.75,180.59,180.49,13.8511]
[1734879812580,16.75,180.59,180.5,18.57900861]
[1734879812889,6.6588,180.6,180.54,18.57900861]
[1734879813175,6.6588,180.6,180.53,18.57900861]
[1734879813358,6.6588,180.6,180.54,18.57900861]
[1734879813554,6.6588,180.6,180.55,18.57900861]
[1734879814082,6.6588,180.6,180.54,18.57900861]
[1734879814462,4.0338,180.63,180.56,18.57900861]
[1734879814975,4.0338,180.63,180.58,18.57900861]
[1734879815967,4.0338,180.63,180.57,18.57900861]
[1734879816173,4.0338,180.63,180.56,18.57900861]
[1734879816358,4.0338,180.63,180.57,38.57900861]
[1734879816556,4.0338,180.63,180.57,20.0]
[1734879817087,23.776884,180.62,180.53,18.57900861]
[1734879817284,40.526884,180.62,180.51,18.57900861]
[1734879817485,4.0338,180.63,180.49,8.65415929]
[1734879817486,40.526884,180.59,180.49,8.65415929]
[1734879817652,40.526884,180.59,180.47,18.57900861]
[1734879818180,40.526884,180.59,180.48,30.19192207]
[1734879818572,40.526884,180.59,180.49,30.19192207]
[1734879819286,40.526884,180.59,180.48,50.19192207]
[1734879819877,40.526884,180.59,180.49,30.19192207]
[1734879820078,40.526884,180.59,180.48,50.19192207]
[1734879820996,40.526884,180.59,180.47,30.19192207]
[1734879822097,40.526884,180.57,180.42,22.51035929]
[1734879822388,23.776884,180.53,180.43,30.19192207]
[1734879823163,23.776884,180.53,180.45,30.19192207]
[1734879823390,23.4088,180.57,180.48,30.19192207]
[1734879823601,6.6588,180.57,180.49,30.19192207]
[1734879824393,23.4088,180.57,180.46,30.19192207]
[1734879824561,23.4088,180.57,180.45,50.19192207]
[1734879824760,40.526884,180.56,180.45,50.19192207]
[1734879825192,54.372684,180.56,180.44,30.19192207]
[1734879825583,54.372684,180.56,180.45,30.19192207]
[1734879826271,23.776884,180.54,180.45,30.19192207]
[1734879826904,23.776884,180.55,180.45,30.19192207]
[1734879827075,40.526884,180.55,180.44,30.19192207]
[1734879827277,23.776884,180.51,180.41,30.19192207]
[1734879828092,6.8432,180.5,180.4,30.19192207]
[1734879828316,23.776884,180.49,180.4,30.19192207]
[1734879828773,23.776884,180.49,180.41,30.19192207]
[1734879828973,40.526884,180.49,180.37,38.84608136]
[1734879829297,40.526884,180.49,180.37,30.19192207]
[1734879829670,23.776884,180.47,180.38,30.19192207]
[1734879829877,3.97778207,180.48,180.4,30.19192207]
[1734879830111,23.776884,180.48,180.4,30.19192207]
[1734879830402,23.776884,180.48,180.39,30.19192207]
[1734879830596,23.776884,180.48,180.39,29.69192207]
[1734879830908,3.97503551,180.47,180.41,30.19192207]
[1734879831400,40.526884,180.49,180.39,30.19192207]
[1734879832379,40.526884,180.49,180.4,30.19192207]
[1734879832594,20.6942,180.5,180.41,30.19192207]
[1734879833090,3.97283702,180.49,180.4,0.12549]
[1734879833295,13.8519,180.48,180.38,30.19192207]
[1734879834208,13.8519,180.48,180.38,0.12549]
[1734879834398,3.97116953,180.47,180.38,30.31741207]
[1734879835002,13.8519,180.48,180.38,30.31741207]
[1734879835710,13.8519,180.48,180.39,30.19192207]
[1734879835884,13.8519,180.48,180.34,23.776884]
[1734879835885,6.8155,180.45,180.34,23.776884]
[1734879836087,20.0,180.41,180.31,30.19192207]
[1734879836287,16.75,180.44,180.34,30.19192207]
[1734879836596,6.8155,180.45,180.29,0.12549]
[1734879836822,6.8155,180.45,180.35,30.19192207]
[1734879837020,6.8155,180.45,180.28,13.8666]
[1734879837322,6.8155,180.45,180.37,30.31741207]
[1734879837527,6.8155,180.45,180.31,20.0]
[1734879837696,23.776884,180.44,180.31,20.0]
[1734879837899,23.776884,180.44,180.35,30.19192207]
[1734879838117,6.8155,180.45,180.36,0.12549]
[1734879838413,6.8155,180.45,180.36,18.60335092]
[1734879838603,6.8155,180.45,180.31,20.0]
[1734879838604,23.4655,180.45,180.32,0.12549]
[1734879838803,23.776884,180.44,180.34,18.60335092]
[1734879839108,23.776884,180.44,180.28,20.0]
[1734879839308,23.776884,180.44,180.24,22.52395929]
[1734879839514,23.776884,180.44,180.32,18.72884092]
[1734879839717,23.776884,180.42,180.32,18.60335092]
[1734879839925,23.776884,180.42,180.31,18.60335092]
[1734879840234,23.776884,180.42,180.24,2.25978253]
[1734879840430,20.6705,180.45,180.34,18.60335092]
[1734879840737,23.776884,180.44,180.35,18.60335092]
[1734879840953,6.8155,180.45,180.37,18.60335092]
[1734879841237,6.8155,180.45,180.39,18.60335092]
[1734879841610,6.8155,180.45,180.29,13.99129]
[1734879841611,6.8155,180.45,180.41,18.60335092]
[1734879841811,6.8155,180.45,180.4,18.60335092]
[1734879842205,6.8155,180.45,180.41,18.60335092]
[1734879842409,4.2128,180.47,180.42,18.60335092]
[1734879842621,4.2128,180.47,180.41,18.60335092]
[1734879842822,4.2128,180.47,180.39,18.60335092]
[1734879843043,4.2128,180.47,180.42,18.60335092]
[1734879843527,4.2128,180.47,180.43,18.60335092]
[1734879843721,4.2128,180.47,180.42,18.60335092]
[1734879844221,4.2128,180.47,180.42,0.12549]
[1734879844454,4.2128,180.47,180.42,18.72884092]
[1734879845108,6.8155,180.5,180.44,18.60335092]
[1734879845322,6.8155,180.5,180.43,18.60335092]
[1734879845513,6.8155,180.5,180.44,18.60335092]
[1734879846149,6.8155,180.5,180.43,0.12549]
[1734879846328,6.8155,180.5,180.44,18.60335092]
[1734879846505,4.3615,180.51,180.46,0.12549]
[1734879846699,6.6181,180.54,180.46,0.12549]
[1734879846700,6.6181,180.54,180.48,0.12549]
[1734879846934,4.3615,180.56,180.51,18.72884092]
[1734879847430,6.6181,180.59,180.54,18.60335092]
[1734879847630,4.3615,180.61,180.56,18.72884092]
[1734879847837,6.6181,180.63,180.56,18.72884092]
[1734879848208,6.6181,180.63,180.56,18.60335092]
[1734879848609,6.6181,180.63,180.57,18.60335092]
[1734879848911,6.6181,180.63,180.53,20.0]
[1734879848912,6.6181,180.63,180.56,18.60335092]
[1734879849113,18.1998,180.66,180.58,18.60335092]
[1734879850139,18.1998,180.66,180.58,30.15398882]
[1734879850349,4.3615,180.66,180.59,30.15398882]
[1734879850550,0.6638967,180.67,180.62,30.15398882]
[1734879850707,0.6638967,180.67,180.63,30.15398882]
[1734879851152,0.6638967,180.67,180.64,30.15398882]
[1734879852064,0.6638967,180.67,180.65,30.15398882]
[1734879852266,0.6638967,180.67,180.66,30.27947882]
[1734879852735,0.6638967,180.67,180.62,30.15398882]
[1734879853075,0.6638967,180.67,180.61,30.15398882]
[1734879853225,0.6638967,180.67,180.6,30.15398882]
[1734879853429,7.0275,180.66,180.56,30.15398882]
[1734879853632,4.2934,180.65,180.54,29.65398882]
[1734879853832,4.2934,180.65,180.55,30.15398882]
[1734879854170,20.0,180.61,180.49,8.65415929]
[1734879854371,20.0,180.57,180.47,38.80814811]
[1734879854657,20.0,180.57,180.48,30.15398882]
[1734879854839,20.0,180.57,180.47,38.80814811]
[1734879855031,20.0,180.57,180.46,30.15398882]
[1734879855237,20.0,180.57,180.45,30.15398882]
[1734879855554,20.0,180.57,180.47,30.27947882]
[1734879855743,20.0,180.57,180.47,30.15398882]
[1734879856552,20.0,180.57,180.49,30.15398882]
[1734879857059,20.0,180.57,180.5,0.12549]
[1734879857967,13.8427,180.6,180.51,0.12549]
[1734879858755,16.65,180.59,180.51,30.27947882]
[1734879858968,13.8396,180.64,180.54,30.15398882]
[1734879859665,13.8396,180.64,180.53,0.12549]
[1734879859857,13.8396,180.64,180.53,30.27947882]
[1734879860369,13.8396,180.64,180.55,0.12549]
[1734879860533,0.6638967,180.67,180.58,0.12549]
[1734879860738,0.6638967,180.67,180.6,0.12549]
[1734879861143,0.6638967,180.67,180.62,0.12549]
[1734879862041,0.6638967,180.67,180.61,0.12549]
[1734879863465,0.6638967,180.67,180.62,30.27947882]
[1734879863844,0.6638967,180.67,180.64,0.12549]
[1734879864664,0.6638967,180.67,180.63,0.12549]
[1734879864879,0.6638967,180.67,180.65,0.12549]
[1734879865043,0.6638967,180.67,180.66,0.12549]
[1734879865562,0.6638967,180.67,180.65,30.27947882]
[1734879865737,0.6638967,180.67,180.65,0.12549]
[1734879866171,0.6638967,180.67,180.66,30.27947882]
[1734879866347,0.6638967,180.67,180.66,31.10958329]
[1734879866887,0.6638967,180.67,180.63,30.15398882]
[1734879867069,0.6638967,180.67,180.59,30.15398882]
[1734879867690,0.6638967,180.67,180.61,30.15398882]
[1734879867977,0.6638967,180.67,180.6,30.15398882]
[1734879868285,0.6638967,180.67,180.6,29.65398882]
[1734879868445,0.6638967,180.67,180.59,30.15398882]
[1734879868649,0.6638967,180.67,180.56,30.15398882]
[1734879868992,20.0,180.63,180.52,30.15398882]
[1734879869165,20.0,180.63,180.5,30.15398882]
[1734879869879,20.0,180.63,180.51,30.15398882]
[1734879870189,20.0,180.63,180.5,30.15398882]
[1734879870692,20.0,180.59,180.5,30.15398882]
[1734879871064,13.8412,180.62,180.52,0.12549]
[1734879871265,13.8412,180.62,180.52,30.27947882]
[1734879872495,27.6762,180.66,180.52,30.27947882]
[1734879872666,20.0,180.62,180.52,30.27947882]
[1734879873182,20.0,180.62,180.5,30.15398882]
[1734879873387,20.0,180.62,180.49,30.15398882]
[1734879873691,20.0,180.62,180.5,0.12549]
[1734879874595,13.8419,180.61,180.5,0.12549]
[1734879875189,20.0,180.58,180.51,0.12549]
[1734879875594,20.0,180.58,180.51,30.27947882]
[1734879876101,20.0,180.58,180.47,23.776884]
[1734879876102,6.548,180.57,180.47,23.776884]
[1734879876307,6.548,180.57,180.43,13.855]
[1734879876308,20.0,180.54,180.45,30.15398882]
[1734879876460,20.0,180.54,180.37,0.83109982]
[1734879876658,20.0,180.54,180.4,30.15398882]
[1734879876977,20.0,180.54,180.42,30.27947882]
[1734879877491,20.0,180.54,180.42,30.15398882]
[1734879877789,20.0,180.54,180.43,30.15398882]
[1734879877992,20.0,180.52,180.43,30.15398882]
[1734879878394,20.0,180.52,180.44,30.15398882]
[1734879878584,13.8473,180.55,180.45,30.27947882]
[1734879878787,13.8473,180.55,180.47,0.12549]
[1734879879762,10.7771,180.57,180.48,0.12549]
[1734879879971,10.7771,180.57,180.48,30.27947882]
[1734879882305,6.548,180.57,180.52,30.27947882]
[1734879882484,13.842,180.61,180.53,30.15398882]
[1734879882672,13.842,180.61,180.54,0.12549]
[1734879882994,10.7771,180.62,180.54,30.27947882]
[1734879883299,10.7771,180.62,180.56,0.12549]
[1734879883600,6.548,180.62,180.56,0.12549]
[1734879884266,6.548,180.62,180.54,30.15398882]
[1734879884467,6.548,180.62,180.53,50.15398882]
[1734879884781,6.548,180.62,180.54,30.27947882]
[1734879886897,20.3892,180.62,180.54,0.12549]
[1734879887090,20.3892,180.62,180.51,30.15398882]
[1734879887274,20.3892,180.62,180.52,0.12549]
[1734879887476,20.3892,180.62,180.52,30.27947882]
[1734879888396,20.3892,180.62,180.54,0.12549]
[1734879888603,6.548,180.62,180.54,54.05636282]
[1734879888793,6.548,180.62,180.54,30.27947882]
[1734879889401,6.2412,180.66,180.58,0.12549]
[1734879890203,6.2412,180.66,180.61,0.12549]
[1734879891208,6.2412,180.66,180.6,0.12549]
[1734879891705,6.2412,180.66,180.58,23.776884]
[1734879891906,6.2412,180.66,180.55,23.776884]
[1734879892204,6.2412,180.66,180.55,53.93087282]
[1734879892504,20.0799,180.66,180.56,0.12549]
[1734879892699,20.0,180.63,180.56,0.12549]
[1734879893085,20.0,180.63,180.53,30.15398882]
[1734879893290,20.0,180.63,180.52,30.15398882]
[1734879893690,13.8412,180.62,180.5,30.15398882]
[1734879895286,20.0,180.59,180.49,30.15398882]
[1734879895490,10.2565,180.57,180.47,30.15398882]
[1734879895691,10.2565,180.57,180.46,30.15398882]
[1734879896292,6.2412,180.57,180.47,0.12549]
[1734879897009,6.2412,180.57,180.52,0.12549]
[1734879897906,6.2412,180.61,180.52,0.12549]
[1734879898084,6.2412,180.61,180.53,0.12549]
[1734879898612,13.8429,180.6,180.52,0.12549]
[1734879900404,13.8429,180.6,180.5,30.15398882]
[1734879900590,13.8429,180.6,180.52,30.15398882]
[1734879900799,13.8429,180.6,180.53,0.12549]
[1734879900996,6.2412,180.66,180.56,30.27947882]
[1734879901312,6.2412,180.66,180.59,0.12549]
[1734879901983,6.2412,180.66,180.58,30.27947882]
[1734879903013,0.6638967,180.67,180.65,0.12549]
[1734879903312,0.6638967,180.67,180.65,30.27947882]
[1734879903521,0.6638967,180.67,180.64,53.93087282]
[1734879903682,0.6638967,180.67,180.63,30.15398882]
[1734879904009,0.6638967,180.67,180.58,30.15398882]
[1734879904511,0.6638967,180.67,180.61,0.12549]
[1734879905010,0.6638967,180.67,180.61,30.27947882]
[1734879905218,0.6638967,180.67,180.63,0.12549]
[1734879905510,0.6638967,180.67,180.63,30.27947882]
[1734879905887,0.6638967,180.67,180.65,0.12549]
[1734879906110,0.6638967,180.67,180.66,0.12549]
[1734879906306,0.6638967,180.67,180.66,54.05636282]
[1734879906522,6.267,180.76,180.68,0.12549]
[1734879906813,6.267,180.76,180.72,30.15398882]
[1734879907017,6.267,180.8,180.72,30.15398882]
[1734879907194,6.267,180.8,180.74,30.15398882]
[1734879907521,1.6328,180.84,180.75,30.15398882]
[1734879907707,6.267,180.83,180.75,30.15398882]
[1734879908085,6.267,180.83,180.76,30.27947882]
[1734879908295,6.267,180.83,180.77,30.15398882]
[1734879909291,6.267,180.83,180.78,30.15398882]
[1734879909492,6.267,180.83,180.77,30.15398882]
[1734879909715,6.267,180.83,180.78,30.15398882]
[1734879910994,6.267,180.83,180.76,30.15398882]
[1734879911706,6.267,180.83,180.77,30.15398882]
[1734879911891,6.267,180.83,180.78,30.15398882]
[1734879912390,6.267,180.83,180.77,30.15398882]
[1734879912596,6.267,180.83,180.78,30.15398882]
[1734879912796,6.267,180.83,180.79,30.15398882]
[1734879913223,0.6638967,180.85,180.81,30.15398882]
[1734879913997,0.6638967,180.85,180.8,30.15398882]
[1734879914631,0.6638967,180.85,180.81,30.15398882]
[1734879914834,0.6638967,180.85,180.82,0.12549]
[1734879915131,0.6638967,180.85,180.81,30.15398882]
[1734879916105,0.6638967,180.85,180.8,30.15398882]
[1734879916834,0.6638967,180.85,180.82,30.27947882]
[1734879917038,0.6638967,180.85,180.83,30.15398882]
[1734879917245,0.6638967,180.85,180.8,30.15398882]
[1734879917602,0.6638967,180.85,180.83,30.15398882]
[1734879917801,0.6638967,180.85,180.84,30.27947882]
[1734879918235,0.6638967,180.85,180.84,54.05636282]
[1734879919228,0.6638967,180.85,180.84,54.88541484]
[1734879919431,13.813,180.99,180.85,23.902374]
[1734879919632,13.813,180.99,180.91,30.15398882]
[1734879919813,13.813,180.99,180.92,0.12549]
[1734879920154,13.813,180.99,180.86,0.82898613]
[1734879920155,13.813,180.99,180.93,30.15398882]
[1734879920311,0.6638967,181.03,180.97,30.15398882]
[1734879920635,0.6638967,181.03,180.99,30.15398882]
[1734879920832,0.6638967,181.03,181.0,30.15398882]
[1734879921213,0.6638967,181.03,181.02,30.15398882]
[1734879921630,0.6638967,181.03,181.01,30.15398882]
[1734879922950,0.6638967,181.03,180.99,30.15398882]
[1734879923623,0.6638967,181.03,180.98,30.15398882]
[1734879924030,20.6638967,181.03,180.96,30.15398882]
[1734879924350,20.6638967,181.03,180.95,30.15398882]
[1734879925048,20.6638967,181.03,180.96,30.15398882]
[1734879925420,20.6638967,181.03,180.97,0.12549]
[1734879925617,20.6638967,181.03,180.97,30.27947882]
[1734879925848,0.6638967,181.03,181.01,30.27947882]
[1734879926350,0.6638967,181.03,181.02,30.27947882]
[1734879927535,0.6638967,181.03,181.02,0.12549]
[1734879927945,0.6638967,181.03,181.02,30.27947882]
[1734879929563,0.6638967,181.03,181.02,0.12549]
[1734879929763,0.6638967,181.03,181.02,30.27947882]
[1734879931666,0.6638967,181.03,180.99,30.15398882]
[1734879931964,0.6638967,181.03,181.01,0.12549]
[1734879932260,0.5384967,181.03,181.02,31.80988882]
[1734879932426,13.7993,181.17,181.02,51.80988882]
[1734879932635,13.7993,181.17,181.09,30.15398882]
[1734879932945,13.7993,181.17,181.05,30.15398882]
[1734879933259,13.7993,181.17,181.06,30.27947882]
[1734879933442,13.7993,181.17,181.08,30.27947882]
[1734879933966,13.7993,181.17,181.06,30.15398882]
[1734879934259,13.7993,181.17,181.08,30.15398882]
[1734879934458,13.7993,181.17,181.07,30.15398882]
[1734879935159,2.26873024,181.21,181.09,30.15398882]
[1734879935324,14.4609967,181.2,181.13,30.15398882]
[1734879935528,14.4609967,181.2,181.12,30.15398882]
[1734879935730,14.4609967,181.2,181.09,30.15398882]
[1734879935929,14.4609967,181.2,181.08,30.15398882]
[1734879936449,13.7984,181.18,181.07,30.15398882]
[1734879936655,30.4484,181.18,181.05,30.15398882]
[1734879936853,30.4484,181.18,181.07,30.15398882]
[1734879937158,30.4484,181.18,181.08,30.27947882]
[1734879937453,30.4484,181.18,181.09,30.15398882]
[1734879937851,30.4484,181.18,181.06,30.15398882]
[1734879938151,30.4484,181.18,181.07,30.15398882]
[1734879938556,30.4484,181.18,181.08,30.15398882]
[1734879939063,30.4484,181.18,181.07,30.15398882]
[1734879939362,30.4484,181.18,181.08,30.15398882]
[1734879940073,13.7984,181.18,181.1,30.15398882]
[1734879940232,13.7984,181.18,181.08,30.15398882]
[1734879940842,30.4484,181.18,181.08,30.15398882]
[1734879941048,30.4484,181.18,181.06,30.15398882]
[1734879941556,20.0,181.15,181.05,30.27947882]
[1734879941769,16.65,181.15,181.04,30.15398882]
[1734879941968,16.65,181.15,181.05,30.15398882]
[1734879942353,16.65,181.15,181.03,30.15398882]
[1734879942547,16.65,181.16,181.02,30.15398882]
[1734879942877,7.9303,181.17,181.01,30.15398882]
[1734879942878,16.65,181.14,181.01,30.15398882]
[1734879943065,16.65,181.14,181.02,30.15398882]
[1734879943452,16.65,181.14,181.03,30.15398882]
[1734879943984,16.65,181.14,181.02,30.15398882]
[1734879944155,30.4522,181.13,181.03,30.15398882]
[1734879944675,16.65,181.11,181.0,30.15398882]
[1734879945080,22.7645,181.08,180.97,30.15398882]
[1734879945283,22.7645,181.08,180.96,30.15398882]
[1734879945485,22.7645,181.08,180.93,1.5436]
[1734879945486,22.7645,181.08,180.99,30.15398882]
[1734879946090,36.571,181.08,180.99,30.15398882]
[1734879947685,16.65,181.06,180.95,30.15398882]
[1734879947881,16.65,181.04,180.93,30.15398882]
[1734879948056,16.65,181.04,180.91,30.15398882]
[1734879948252,16.65,181.04,180.93,30.15398882]
[1734879948483,16.65,181.04,180.94,30.15398882]
[1734879948964,20.0,181.04,180.93,30.15398882]
[1734879949169,13.8098,181.03,180.95,30.15398882]
[1734879949363,35.2821,181.08,180.97,30.15398882]
[1734879949596,13.8078,181.06,181.0,30.15398882]
[1734879949909,7.67,181.08,181.01,30.15398882]
[1734879950119,7.67,181.08,180.94,6.5248]
[1734879950120,7.67,181.08,181.02,30.15398882]
[1734879950484,7.67,181.08,181.02,0.12549]
[1734879950686,16.65,181.14,181.02,30.27947882]
[1734879950885,13.8022,181.13,181.02,30.27947882]
[1734879952020,13.8022,181.13,181.01,30.15398882]
[1734879952313,13.8022,181.13,181.02,0.12549]
[1734879952523,13.8022,181.13,181.02,30.27947882]
[1734879952878,13.8037,181.11,181.02,30.15398882]
[1734879953174,13.8037,181.11,181.01,30.15398882]
[1734879953382,13.8037,181.11,181.0,1.6447]
[1734879953383,13.8037,181.11,181.02,30.27947882]
[1734879953819,13.8037,181.11,181.01,30.15398882]
[1734879954481,58.0612,181.11,180.97,30.15398882]
[1734879954706,20.0,181.08,180.96,30.15398882]
[1734879955020,22.7457,181.07,180.93,30.15398882]
[1734879955229,16.65,181.03,180.91,30.15398882]
[1734879955400,16.65,181.03,180.88,30.15398882]
[1734879955742,36.65,181.0,180.88,30.15398882]
[1734879956215,6.0957,180.99,180.92,0.12549]
[1734879956413,6.0957,180.99,180.92,30.15398882]
[1734879957039,6.0957,180.99,180.93,30.15398882]
[1734879957189,6.0957,180.99,180.92,30.15398882]
[1734879957389,6.0957,180.99,180.92,0.12549]
[1734879957619,6.0957,180.99,180.92,30.27947882]
[1734879958312,6.0957,180.99,180.92,0.12549]
[1734879958617,6.0957,180.99,180.92,30.27947882]
[1734879959114,6.0957,180.99,180.93,30.15398882]